[Event "FIDE WCCC Open-10 2024"]
[Site "Montesilvano"]
[Date "2024.11.18"]
[Round "4.12"]
[White "Tenuun, Tseesuren"]
[Black "Enkhbileg, Gantumur"]
[Result "1-0"]
[ECO "E99"]
[WhiteElo "1702"]
[BlackElo "1529"]
[Annotator "NA RC"]
[PlyCount "97"]
[EventDate "2024.11.18"]
[EventType "swiss"]
[EventCountry "ITA"]
[SourceTitle "playchess.com"]
[Source "ChessBase"]
[SourceQuality "1"]
[TimeControl "5400+30"]

1. d4 {[%emt 0:00:01]} Nf6 {[%emt 0:04:02]} 2. c4 {[%emt 0:00:12]} g6 {[%emt 0:00:16]} 3. Nc3 {[%emt 0:00:15]} Bg7 {[%emt 0:00:07]} 4. e4 {[%emt 0:00:50]} d6 {[%emt 0:00:10]} 5. Nf3 {[%emt 0:00:16]} O-O {[%emt 0:00:39]} 6. Be2 {[%emt 0:00:25]} Nc6 {[%emt 0:00:29]} 7. Be3 {[%emt 0:00:41]} e5 {[%emt 0:02:52]} 8. d5 {[%emt 0:00:13]} Ne7 {[%emt 0:00:10]} 9. O-O {[%emt 0:00:13]} Ne8 {[%emt 0:02:50]} 10. Ne1 {[%emt 0:00:14]} f5 {[%emt 0:00:18]} 11. f3 {[%emt 0:00:06]} f4 {[%emt 0:00:04]} 12. Bf2 {[%emt 0:00:11]} g5 {[%emt 0:00:24]} 13. c5 {[%emt 0:00:59]} Ng6 {[%emt 0:27:44]} 14. Rc1 {[%emt 0:00:30]} Nf6 {[%emt 0:07:35]} 15. cxd6 {[%emt 0:00:51]} cxd6 {[%emt 0:27:17]} 16. Nb5 {[%emt 0:00:08]} b6 {[%emt 0:03:58]} 17. Qa4 {[%emt 0:01:08]} Bd7 {[%emt 0:02:39]} 18. Qa3 {[%emt 0:00:16]} Bxb5 {[%emt 0:00:18]} 19. Bxb5 {[%emt 0:00:14]} Rf7 {[%emt 0:07:04]} 20. h3 {[%emt 0:02:23]} h5 {[%emt 0:00:42]} 21. Nc2 {[%emt 0:01:48]} g4 {[%emt 0:00:50]} 22. Nb4 {[%emt 0:00:59]} Nh7 {[%emt 0:05:16]} 23. fxg4 {[%emt 0:13:10]} Qg5 {[%emt 0:02:36]} 24. Be2 {[%emt 0:15:33]} hxg4 {[%emt 0:00:33]} 25. Bxg4 {[%emt 0:00:32]} Kh8 {[%emt 0:01:45]} 26. Rc6 {[%emt 0:02:16]} Nf6 {[%emt 0:02:52]} 27. Qf3 {[%emt 0:01:15]} Nh4 {[%emt 0:00:00]} 28. Bxh4 {[%emt 0:00:56]} Qxh4 {[%emt 0:00:00]} 29. Be6 {[%emt 0:00:23]} Rff8 {[%emt 0:00:00]} 30. Rxd6 {[%emt 0:00:09]} Nh5 {[%emt 0:01:17]} 31. Rc1 {[%emt 0:00:54]} Nf6 {[%emt 0:00:39]} 32. Nc6 {[%emt 0:01:36]} Ne8 {[%emt 0:00:25]} 33. Rd7 {[%emt 0:00:28]} a6 {[%emt 0:00:29]} 34. Rb7 {[%emt 0:00:05]} b5 {[%emt 0:00:07]} 35. Ne7 {[%emt 0:00:10]} Qh6 {[%emt 0:00:40]} 36. Nf5 {[%emt 0:00:08]} Qh7 {[%emt 0:00:25]} 37. Nxg7 {[%emt 0:01:50]} Nxg7 {[%emt 0:00:07]} 38. Rcc7 {[%emt 0:00:04]} Qh4 {[%emt 0:01:51]} 39. Rxg7 {[%emt 0:00:09]} Qe1+ {[%emt 0:00:00]} 40. Kh2 {[%emt 0:00:06]} Qh4 {[%emt 0:01:00]} 41. Rh7+ {[%emt 0:00:13]} Qxh7 {[%emt 0:00:00]} 42. Rxh7+ {[%emt 0:00:09]} Kxh7 {[%emt 0:00:00]} 43. Qh5+ {[%emt 0:00:09]} Kg7 {[%emt 0:00:00]} 44. Qg5+ {[%emt 0:00:12]} Kh7 {[%emt 0:00:00]} 45. Bf5+ {[%emt 0:00:06]} Rxf5 {[%emt 0:01:46]} 46. exf5 {[%emt 1:00:04]} Rg8 {[%emt 0:00:40]} 47. Qe7+ {[%emt 0:00:00]} Rg7 {[%emt 0:00:18]} 48. f6 {[%emt 0:00:00]} Rxe7 {[%emt 0:01:16]} 49. fxe7 1-0

[Event "FIDE WCCC Open-10 2024"]
[Site "Montesilvano"]
[Date "2024.11.18"]
[Round "4.13"]
[White "Mikkelsen, Anders Askjaer"]
[Black "Larion, Iustin"]
[Result "1/2-1/2"]
[ECO "B14"]
[WhiteElo "1745"]
[BlackElo "1925"]
[Annotator "RC"]
[PlyCount "66"]
[EventDate "2024.11.18"]
[EventType "swiss"]
[EventCountry "ITA"]
[SourceTitle "playchess.com"]
[Source "ChessBase"]
[SourceQuality "1"]
[TimeControl "5400+30"]

1. e4 {[%emt 0:00:08]} c6 {[%emt 0:00:19]} 2. d4 {[%emt 0:00:14]} d5 {[%emt 0:00:06]} 3. exd5 {[%emt 0:00:18]} cxd5 {[%emt 0:00:08]} 4. c4 {[%emt 0:00:20]} e6 {[%emt 0:00:09]} 5. Nc3 {[%emt 0:00:15]} Bb4 {[%emt 0:00:06]} 6. Nf3 {[%emt 0:00:18]} Nf6 {[%emt 0:00:09]} 7. Bg5 {[%emt 0:00:47]} h6 {[%emt 0:06:25]} 8. Bxf6 {[%emt 0:02:31]} Qxf6 {[%emt 0:00:10]} 9. cxd5 {[%emt 0:02:13]} O-O {[%emt 0:03:54]} 10. Bd3 {[%emt 0:01:25]} exd5 {[%emt 0:03:50]} 11. O-O {[%emt 0:00:17]} Bxc3 {[%emt 0:09:34]} 12. bxc3 {[%emt 0:01:38]} Bg4 {[%emt 0:00:09]} 13. Be2 {[%emt 0:10:20]} Nd7 {[%emt 0:06:19]} 14. h3 {[%emt 0:02:30]} Bxf3 {[%emt 0:01:19]} 15. Bxf3 {[%emt 0:01:04]} Nb6 {[%emt 0:00:14]} 16. a4 {[%emt 0:02:40]} Qd6 {[%emt 0:04:40]} 17. Rb1 {[%emt 0:01:49]} Qc6 {[%emt 0:11:05]} 18. Qb3 {[%emt 0:04:12]} Rab8 {[%emt 0:05:43]} 19. Rfc1 {[%emt 0:03:51]} Rfd8 {[%emt 0:05:07]} 20. Be2 {[%emt 0:04:23]} Nc4 {[%emt 0:07:19]} 21. Bxc4 {[%emt 0:00:36]} dxc4 {[%emt 0:00:19]} 22. Qb5 {[%emt 0:11:26]} Qc7 {[%emt 0:03:07]} 23. Rb4 {[%emt 0:03:14]} Rdc8 {[%emt 0:03:09]} 24. a5 {[%emt 0:05:36]} Qf4 {[%emt 0:06:21]} 25. Rd1 {[%emt 0:00:48]} Rc6 {[%emt 0:06:18]} 26. Rxc4 {[%emt 0:03:33]} Rg6 {[%emt 0:00:48]} 27. Rc5 {[%emt 0:14:22]} Qf3 {[%emt 0:07:45]} 28. Qf1 {[%emt 0:00:06]} Rxg2+ {[%emt 0:01:04]} 29. Qxg2 {[%emt 0:00:12]} Qxd1+ {[%emt 0:00:16]} 30. Kh2 {[%emt 0:00:20]} Re8 {[%emt 0:00:38]} 31. Qxb7 {[%emt 0:03:26]} Qd2 {[%emt 0:06:16]} 32. Qf3 {[%emt 0:00:37]} f6 {[%emt 0:01:58]} 33. Kg2 {[%emt 0:03:30]} Qc2 {[%emt 0:00:48]} 1/2-1/2

[Event "FIDE WCCC Open-10 2024"]
[Site "Montesilvano"]
[Date "2024.11.18"]
[Round "4.13"]
[White "Skouroupathis, Kyriakos"]
[Black "Thorulsley, Kairaav"]
[Result "1-0"]
[ECO "B51"]
[WhiteElo "1695"]
[BlackElo "1520"]
[Annotator "NA RC"]
[PlyCount "81"]
[EventDate "2024.11.18"]
[EventType "swiss"]
[EventCountry "ITA"]
[SourceTitle "playchess.com"]
[Source "ChessBase"]
[SourceQuality "1"]
[TimeControl "5400+30"]

1. e4 {[%emt 0:00:03]} c5 {[%emt 0:00:03]} 2. Nf3 {[%emt 0:00:10]} d6 {[%emt 0:00:04]} 3. Bb5+ {[%emt 0:00:05]} Nd7 {[%emt 0:00:32]} 4. c3 {[%emt 0:00:21]} e6 {[%emt 0:03:09]} 5. O-O {[%emt 0:00:52]} Be7 {[%emt 0:00:52]} 6. d4 {[%emt 0:01:47]} cxd4 {[%emt 0:00:36]} 7. cxd4 {[%emt 0:00:08]} Ngf6 {[%emt 0:01:33]} 8. Nc3 {[%emt 0:01:03]} O-O {[%emt 0:00:16]} 9. Bg5 {[%emt 0:01:51]} a6 {[%emt 0:00:58]} 10. Bd3 {[%emt 0:05:48]} h6 {[%emt 0:03:48]} 11. Bf4 {[%emt 0:02:30]} Nh5 {[%emt 0:11:54]} 12. Be3 {[%emt 0:07:29]} Nhf6 {[%emt 0:03:27]} 13. h3 {[%emt 0:07:04]} b5 {[%emt 0:02:15]} 14. e5 {[%emt 0:07:24]} dxe5 {[%emt 0:02:03]} 15. dxe5 {[%emt 0:00:50]} Nd5 {[%emt 0:01:17]} 16. Nxd5 {[%emt 0:00:08]} exd5 {[%emt 0:00:13]} 17. Bc2 {[%emt 0:02:30]} Bb7 {[%emt 0:01:06]} 18. Bb3 {[%emt 0:00:46]} Nb6 {[%emt 0:00:45]} 19. Qd3 {[%emt 0:02:42]} Nc4 {[%emt 0:14:34]} 20. Bc2 {[%emt 0:01:41]} f5 {[%emt 0:00:11]} 21. exf6 {[%emt 0:00:08]} Rxf6 {[%emt 0:00:09]} 22. Qh7+ {[%emt 0:01:58]} Kf7 {[%emt 0:00:08]} 23. Bd4 {[%emt 0:00:07]} Qh8 {[%emt 0:01:59]} 24. Qxh8 {[%emt 0:03:23]} Rxh8 {[%emt 0:00:07]} 25. Bxf6 {[%emt 0:01:01]} Bxf6 {[%emt 0:00:05]} 26. Bb3 {[%emt 0:04:36]} Nxb2 {[%emt 0:06:14]} 27. Rab1 {[%emt 0:06:03]} Nc4 {[%emt 0:00:10]} 28. a4 {[%emt 0:02:29]} Bc6 {[%emt 0:01:29]} 29. axb5 {[%emt 0:01:34]} axb5 {[%emt 0:00:10]} 30. Rfd1 {[%emt 0:05:08]} Rd8 {[%emt 0:11:18]} 31. Nd4 {[%emt 0:01:57]} Bxd4 {[%emt 0:00:26]} 32. Rxd4 {[%emt 0:00:03]} Rd7 {[%emt 0:10:39]} 33. Re1 {[%emt 0:03:28]} g6 {[%emt 0:03:12]} 34. f4 {[%emt 0:02:20]} Kf6 {[%emt 0:01:55]} 35. g4 {[%emt 0:02:56]} Bb7 {[%emt 0:03:41]} 36. Kf2 {[%emt 0:04:04]} Bc6 {[%emt 0:01:20]} 37. Kf3 {[%emt 0:03:43]} Rd6 {[%emt 0:03:48]} 38. h4 {[%emt 0:04:43]} Bb7 {[%emt 0:07:01]} 39. g5+ {[%emt 0:03:00]} hxg5 {[%emt 0:00:33]} 40. fxg5+ {[%emt 0:00:07]} Kf5 {[%emt 0:01:33]} 41. Rf4# {[%emt 0:00:33]} 1-0

[Event "FIDE WCCC Open-10 2024"]
[Site "Montesilvano"]
[Date "2024.11.18"]
[Round "4.14"]
[White "Zuo, Junyu"]
[Black "Kostyukovich, Ivan"]
[Result "1-0"]
[ECO "C54"]
[WhiteElo "2120"]
[BlackElo "1489"]
[Annotator "RC"]
[PlyCount "59"]
[EventDate "2024.11.18"]
[EventType "swiss"]
[EventCountry "ITA"]
[SourceTitle "playchess.com"]
[Source "ChessBase"]
[SourceQuality "1"]
[TimeControl "5400+30"]

1. e4 {[%emt 0:00:28]} e5 {[%emt 0:00:09]} 2. Bc4 {[%emt 0:00:25]} Nf6 {[%emt 0:00:16]} 3. d3 {[%emt 0:00:31]} Nc6 {[%emt 0:00:13]} 4. Nf3 {[%emt 0:00:25]} Bc5 {[%emt 0:00:39]} 5. c3 {[%emt 0:00:43]} a6 {[%emt 0:00:41]} 6. O-O {[%emt 0:01:06]} d6 {[%emt 0:00:39]} 7. a4 {[%emt 0:00:46]} Ba7 {[%emt 0:00:23]} 8. Nbd2 {[%emt 0:00:48]} h6 {[%emt 0:01:22]} 9. Re1 {[%emt 0:00:44]} g5 {[%emt 0:00:41]} 10. b4 {[%emt 0:03:06]} g4 {[%emt 0:01:11]} 11. Nh4 {[%emt 0:00:20]} Nxe4 {[%emt 0:00:36]} 12. Nxe4 {[%emt 0:00:33]} Qxh4 {[%emt 0:00:23]} 13. d4 {[%emt 0:00:41]} f5 {[%emt 0:04:33]} 14. Ng3 {[%emt 0:00:45]} Bd7 {[%emt 0:05:15]} 15. b5 {[%emt 0:28:39]} Ne7 {[%emt 0:06:15]} 16. bxa6 {[%emt 0:32:51]} bxa6 {[%emt 0:02:56]} 17. dxe5 {[%emt 0:02:11]} dxe5 {[%emt 0:00:34]} 18. Rxe5 {[%emt 0:02:03]} Qf6 {[%emt 0:01:13]} 19. Qe2 {[%emt 0:00:33]} Kd8 {[%emt 0:01:15]} 20. Ba3 {[%emt 0:03:47]} Ng6 {[%emt 1:11:16]} 21. Re6 {[%emt 0:06:56]} Bxe6 {[%emt 0:00:00]} 22. Bxe6 {[%emt 0:00:29]} Nf4 {[%emt 0:00:00]} 23. Qd2+ {[%emt 0:00:29]} Bd4 {[%emt 0:00:00]} 24. Qxf4 {[%emt 0:00:33]} Qxe6 {[%emt 0:00:00]} 25. Qxd4+ {[%emt 0:00:11]} Qd7 {[%emt 0:00:00]} 26. Qxh8+ {[%emt 0:00:21]} Qe8 {[%emt 0:00:00]} 27. Rd1+ {[%emt 0:00:09]} Kc8 {[%emt 0:00:00]} 28. Qxe8+ {[%emt 0:00:06]} Kb7 {[%emt 0:00:00]} 29. Rb1+ {[%emt 0:00:06]} Ka7 {[%emt 0:00:00]} 30. Bc5# {[%emt 0:00:06]} 1-0

[Event "FIDE WCCC Open-10 2024"]
[Site "Montesilvano"]
[Date "2024.11.18"]
[Round "4.14"]
[White "Yao, Lucas Mason Pin Qian"]
[Black "Chen, Pin-Jui"]
[Result "1/2-1/2"]
[ECO "C93"]
[WhiteElo "1687"]
[BlackElo "1505"]
[Annotator "NA RC"]
[PlyCount "95"]
[EventDate "2024.11.18"]
[EventType "swiss"]
[EventCountry "ITA"]
[SourceTitle "playchess.com"]
[Source "ChessBase"]
[SourceQuality "1"]
[TimeControl "5400+30"]

1. e4 {[%emt 0:00:04]} e5 {[%emt 0:00:09]} 2. Nf3 {[%emt 0:00:08]} Nc6 {[%emt 0:00:06]} 3. Bb5 {[%emt 0:00:09]} a6 {[%emt 0:00:07]} 4. Ba4 {[%emt 0:00:07]} Nf6 {[%emt 0:00:07]} 5. d3 {[%emt 0:00:16]} b5 {[%emt 0:01:13]} 6. Bb3 {[%emt 0:00:11]} Be7 {[%emt 0:00:33]} 7. O-O {[%emt 0:01:01]} O-O {[%emt 0:00:22]} 8. Re1 {[%emt 0:01:36]} d6 {[%emt 0:00:29]} 9. h3 {[%emt 0:01:31]} h6 {[%emt 0:13:10]} 10. c3 {[%emt 0:01:11]} Be6 {[%emt 0:02:34]} 11. Bc2 {[%emt 0:03:53]} d5 {[%emt 0:17:04]} 12. exd5 {[%emt 0:02:03]} Qxd5 {[%emt 0:00:06]} 13. Bb3 {[%emt 0:01:57]} Qd6 {[%emt 0:00:44]} 14. Bxe6 {[%emt 0:01:34]} fxe6 {[%emt 0:04:25]} 15. Qe2 {[%emt 0:01:15]} Nd7 {[%emt 0:03:43]} 16. d4 {[%emt 0:01:09]} Bf6 {[%emt 0:00:11]} 17. dxe5 {[%emt 0:03:46]} Ndxe5 {[%emt 0:02:49]} 18. Nxe5 {[%emt 0:00:49]} Qxe5 {[%emt 0:01:44]} 19. Be3 {[%emt 0:01:21]} Rad8 {[%emt 0:02:30]} 20. Nd2 {[%emt 0:00:32]} Qd5 {[%emt 0:16:13]} 21. Nb3 {[%emt 0:04:09]} Be7 {[%emt 0:05:07]} 22. Rad1 {[%emt 0:11:55]} Qf5 {[%emt 0:01:01]} 23. Rxd8 {[%emt 0:04:34]} Rxd8 {[%emt 0:00:20]} 24. Bd4 {[%emt 0:02:50]} Kf7 {[%emt 0:06:56]} 25. Qe3 {[%emt 0:05:21]} Bg5 {[%emt 0:09:10]} 26. Qg3 {[%emt 0:05:28]} Qf4 {[%emt 0:00:54]} 27. Qxf4+ {[%emt 0:01:54]} Bxf4 {[%emt 0:00:05]} 28. Nc5 {[%emt 0:03:27]} e5 {[%emt 0:00:23]} 29. Be3 {[%emt 0:00:09]} a5 {[%emt 0:00:14]} 30. Ne4 {[%emt 0:03:18]} Bxe3 {[%emt 0:04:06]} 31. Rxe3 {[%emt 0:00:35]} Rd1+ {[%emt 0:00:54]} 32. Kh2 {[%emt 0:00:14]} Rb1 {[%emt 0:00:22]} 33. Re2 {[%emt 0:00:43]} b4 {[%emt 0:00:20]} 34. cxb4 {[%emt 0:01:59]} Nd4 {[%emt 0:00:18]} 35. Rd2 {[%emt 0:02:08]} axb4 {[%emt 0:00:14]} 36. f4 {[%emt 0:01:02]} Ke6 {[%emt 0:01:58]} 37. Nc5+ {[%emt 0:04:04]} Kd5 {[%emt 0:01:05]} 38. Nb3 {[%emt 0:00:48]} c5 {[%emt 0:01:50]} 39. fxe5 {[%emt 0:01:07]} Re1 {[%emt 0:00:07]} 40. Kg3 {[%emt 0:07:10]} Rxe5 {[%emt 0:00:09]} 41. Kf2 {[%emt 0:01:17]} Kc4 {[%emt 0:00:35]} 42. Nc1 {[%emt 0:00:58]} g5 {[%emt 0:01:31]} 43. Nd3 {[%emt 0:00:50]} Re4 {[%emt 0:00:22]} 44. Nc1 {[%emt 0:01:20]} h5 {[%emt 0:00:50]} 45. g3 {[%emt 0:01:29]} h4 {[%emt 0:00:41]} 46. Rd3 {[%emt 0:00:35]} Nf5 {[%emt 0:00:32]} 47. g4 {[%emt 0:00:22]} Nd4 {[%emt 0:00:24]} 48. Re3 {[%emt 0:00:49]} 1/2-1/2

[Event "FIDE WCCC Open-10 2024"]
[Site "Montesilvano"]
[Date "2024.11.18"]
[Round "4.15"]
[White "Li, Weilong"]
[Black "Ilko-Toth, Andras"]
[Result "1-0"]
[ECO "B12"]
[WhiteElo "1735"]
[BlackElo "2115"]
[Annotator "RC"]
[PlyCount "159"]
[EventDate "2024.11.18"]
[EventType "swiss"]
[EventCountry "ITA"]
[SourceTitle "playchess.com"]
[Source "ChessBase"]
[SourceQuality "1"]
[TimeControl "5400+30"]

1. e4 {[%emt 0:00:03]} c6 {[%emt 0:00:06]} 2. d4 {[%emt 0:00:04]} d5 {[%emt 0:00:05]} 3. e5 {[%emt 0:00:06]} Bf5 {[%emt 0:00:05]} 4. h4 {[%emt 0:00:07]} a6 {[%emt 0:00:01]} 5. g4 {[%emt 0:00:05]} Bd7 {[%emt 0:00:05]} 6. Nc3 {[%emt 0:08:33]} c5 {[%emt 0:06:29]} 7. Be3 {[%emt 0:10:51]} e6 {[%emt 0:04:47]} 8. Nge2 {[%emt 0:04:01]} Nc6 {[%emt 0:07:30]} 9. f4 {[%emt 0:02:32]} h5 {[%emt 0:11:52]} 10. g5 {[%emt 0:09:08]} cxd4 {[%emt 0:13:53]} 11. Nxd4 {[%emt 0:00:09]} Nxd4 {[%emt 0:00:15]} 12. Bxd4 {[%emt 0:00:32]} Ne7 {[%emt 0:06:07]} 13. Bh3 {[%emt 0:03:53]} Rc8 {[%emt 0:08:34]} 14. Qd2 {[%emt 0:02:18]} g6 {[%emt 0:08:52]} 15. Qf2 {[%emt 0:02:20]} Rc4 {[%emt 0:08:11]} 16. Bf1 {[%emt 0:00:45]} Rc6 {[%emt 0:00:40]} 17. Bd3 {[%emt 0:00:11]} b5 {[%emt 0:02:43]} 18. a4 {[%emt 0:05:58]} b4 {[%emt 0:02:37]} 19. Na2 {[%emt 0:00:25]} Nf5 {[%emt 0:00:55]} 20. Bxf5 {[%emt 0:00:14]} exf5 {[%emt 0:00:06]} 21. Nc1 {[%emt 0:00:29]} Be7 {[%emt 0:01:44]} 22. Nb3 {[%emt 0:00:20]} O-O {[%emt 0:01:06]} 23. a5 {[%emt 0:00:10]} Qc8 {[%emt 0:01:29]} 24. Rh2 {[%emt 0:01:05]} Qb7 {[%emt 0:01:29]} 25. Bc5 {[%emt 0:03:29]} Be6 {[%emt 0:02:11]} 26. Bxe7 {[%emt 0:01:08]} Qxe7 {[%emt 0:00:03]} 27. Rd1 {[%emt 0:01:30]} Rfc8 {[%emt 0:00:57]} 28. Rd2 {[%emt 0:00:09]} Qc7 {[%emt 0:01:27]} 29. Kf1 {[%emt 0:01:22]} Rc4 {[%emt 0:00:56]} 30. Kg1 {[%emt 0:00:44]} Kg7 {[%emt 0:02:18]} 31. Rg2 {[%emt 0:00:09]} Qc6 {[%emt 0:02:17]} 32. Kh2 {[%emt 0:01:04]} Qc7 {[%emt 0:00:24]} 33. Kg3 {[%emt 0:00:21]} Kh7 {[%emt 0:01:25]} 34. Qb6 {[%emt 0:00:24]} Qxb6 {[%emt 0:00:18]} 35. axb6 {[%emt 0:00:04]} Rb8 {[%emt 0:00:15]} 36. b7 {[%emt 0:00:12]} Rc7 {[%emt 0:00:24]} 37. Na5 {[%emt 0:01:20]} Rc5 {[%emt 0:00:14]} 38. Nb3 {[%emt 0:00:04]} Rb5 {[%emt 0:00:19]} 39. Rg1 {[%emt 0:00:06]} R8xb7 {[%emt 0:00:41]} 40. Ra1 {[%emt 0:00:05]} R7b6 {[%emt 0:00:42]} 41. Ra4 {[%emt 0:00:13]} a5 {[%emt 0:01:23]} 42. Rxa5 {[%emt 0:00:30]} Rxa5 {[%emt 0:00:05]} 43. Nxa5 {[%emt 0:00:04]} Ra6 {[%emt 0:00:08]} 44. Nb7 {[%emt 0:00:19]} Ra2 {[%emt 0:00:14]} 45. b3 {[%emt 0:00:05]} Ra6 {[%emt 0:03:27]} 46. Nd6 {[%emt 0:00:33]} Rc6 {[%emt 0:01:06]} 47. Ne8 {[%emt 0:01:51]} Rc3+ {[%emt 0:00:32]} 48. Kg2 {[%emt 0:00:04]} Kg8 {[%emt 0:00:28]} 49. Nd6 {[%emt 0:00:38]} Rc5 {[%emt 0:01:28]} 50. Kf2 {[%emt 0:03:18]} Kf8 {[%emt 0:00:14]} 51. Ke2 {[%emt 0:00:08]} Ke7 {[%emt 0:00:31]} 52. Kd1 {[%emt 0:00:13]} Rc3 {[%emt 0:00:56]} 53. Rd3 {[%emt 0:01:10]} Rc6 {[%emt 0:00:47]} 54. Rd4 {[%emt 0:01:08]} Rb6 {[%emt 0:00:43]} 55. Kd2 {[%emt 0:00:07]} Kd7 {[%emt 0:00:27]} 56. c3 {[%emt 0:00:11]} bxc3+ {[%emt 0:00:10]} 57. Kxc3 {[%emt 0:00:04]} Rc6+ {[%emt 0:00:20]} 58. Kb2 {[%emt 0:00:06]} Rb6 {[%emt 0:00:15]} 59. b4 {[%emt 0:00:11]} Kc6 {[%emt 0:00:41]} 60. Kb3 {[%emt 0:00:09]} Rb8 {[%emt 0:00:11]} 61. Kb2 {[%emt 0:01:08]} Rb6 {[%emt 0:00:50]} 62. Kc3 {[%emt 0:00:09]} Rb8 {[%emt 0:00:05]} 63. Rd1 {[%emt 0:00:50]} Ra8 {[%emt 0:00:18]} 64. Kb2 {[%emt 0:00:10]} Kb6 {[%emt 0:00:48]} 65. Ra1 {[%emt 0:00:54]} Rb8 {[%emt 0:01:20]} 66. Kc3 {[%emt 0:00:14]} Kc6 {[%emt 0:00:23]} 67. Ra6+ {[%emt 0:00:07]} Rb6 {[%emt 0:00:57]} 68. b5+ {[%emt 0:00:44]} Kc5 {[%emt 0:00:05]} 69. Rxb6 {[%emt 0:00:06]} d4+ {[%emt 0:00:10]} 70. Kd3 {[%emt 0:00:05]} Kxb6 {[%emt 0:00:06]} 71. Kxd4 {[%emt 0:00:04]} Ba2 {[%emt 0:00:11]} 72. Nc4+ {[%emt 0:00:59]} Kxb5 {[%emt 0:00:43]} 73. e6 {[%emt 0:00:09]} fxe6 {[%emt 0:00:17]} 74. Ne5 {[%emt 0:00:04]} Bb3 {[%emt 0:00:36]} 75. Nxg6 {[%emt 0:00:05]} Kc6 {[%emt 0:00:06]} 76. Ne5+ {[%emt 0:00:04]} Kd6 {[%emt 0:00:11]} 77. g6 {[%emt 0:00:04]} Ke7 {[%emt 0:00:25]} 78. g7 {[%emt 0:00:05]} Bc4 {[%emt 0:00:20]} 79. g8=Q {[%emt 0:00:06]} Kd6 {[%emt 0:00:09]} 80. Qd8# {[%emt 0:00:05]} 1-0

[Event "FIDE WCCC Open-10 2024"]
[Site "Montesilvano"]
[Date "2024.11.18"]
[Round "4.16"]
[White "Zhang, Junyi"]
[Black "Montaigu Dupont, Arthur"]
[Result "1-0"]
[ECO "B24"]
[WhiteElo "2061"]
[BlackElo "1767"]
[Annotator "RC"]
[PlyCount "65"]
[EventDate "2024.11.18"]
[EventType "swiss"]
[EventCountry "ITA"]
[SourceTitle "playchess.com"]
[Source "ChessBase"]
[SourceQuality "1"]
[TimeControl "5400+30"]

1. e4 {[%emt 0:00:08]} c5 {[%emt 0:00:02]} 2. Nf3 {[%emt 0:00:02]} e6 {[%emt 1:31:28]} 3. g3 {[%emt 0:00:02]} Nc6 {[%emt 0:00:00]} 4. Bg2 {[%emt 0:00:01]} d5 {[%emt 0:00:00]} 5. exd5 {[%emt 0:00:03]} exd5 {[%emt 0:00:00]} 6. O-O {[%emt 0:00:05]} Nf6 {[%emt 0:00:00]} 7. d4 {[%emt 0:00:04]} cxd4 {[%emt 0:00:00]} 8. Nxd4 {[%emt 0:01:14]} Be7 {[%emt 0:00:00]} 9. Nc3 {[%emt 0:13:47]} O-O {[%emt 0:00:00]} 10. Bg5 {[%emt 0:00:53]} h6 {[%emt 0:00:00]} 11. Bxf6 {[%emt 0:01:16]} Bxf6 {[%emt 0:00:00]} 12. Nde2 {[%emt 0:00:05]} d4 {[%emt 0:00:00]} 13. Nd5 {[%emt 0:03:50]} Be5 {[%emt 0:00:00]} 14. Ndf4 {[%emt 0:08:05]} Bf5 {[%emt 0:00:00]} 15. Nd3 {[%emt 0:01:48]} Bf6 {[%emt 0:00:00]} 16. Nef4 {[%emt 0:01:44]} Ne5 {[%emt 0:00:00]} 17. Nxe5 {[%emt 0:12:04]} Bxe5 {[%emt 0:00:00]} 18. Nd3 {[%emt 0:00:12]} Bf6 {[%emt 0:00:00]} 19. Bxb7 {[%emt 0:04:34]} Rb8 {[%emt 0:00:00]} 20. Qf3 {[%emt 0:00:36]} Bxd3 {[%emt 0:00:00]} 21. cxd3 {[%emt 0:00:09]} Qe7 {[%emt 0:00:00]} 22. Bd5 {[%emt 0:01:11]} Rxb2 {[%emt 0:00:00]} 23. Rfe1 {[%emt 0:00:18]} Qd6 {[%emt 0:00:00]} 24. Bb3 {[%emt 0:00:07]} Qb4 {[%emt 0:00:00]} 25. Rec1 {[%emt 0:06:51]} Qd2 {[%emt 0:00:00]} 26. Rc7 {[%emt 0:03:00]} Qa5 {[%emt 0:00:00]} 27. Rac1 {[%emt 0:01:55]} Qd2 {[%emt 0:03:37]} 28. Kg2 {[%emt 0:03:35]} a5 {[%emt 0:01:48]} 29. Rxf7 {[%emt 0:03:10]} Rxf7 {[%emt 0:05:38]} 30. Rc8+ {[%emt 0:00:07]} Kh7 {[%emt 0:00:17]} 31. Bxf7 {[%emt 0:00:29]} Qg5 {[%emt 0:02:32]} 32. h4 {[%emt 0:04:31]} Qe5 {[%emt 0:00:31]} 33. h5 {[%emt 0:00:34]} 1-0

[Event "FIDE WCCC Open-10 2024"]
[Site "Montesilvano"]
[Date "2024.11.18"]
[Round "4.16"]
[White "Megagiannis, Maximos"]
[Black "Dien James"]
[Result "1-0"]
[ECO "B01"]
[WhiteElo "1682"]
[BlackElo "1513"]
[Annotator "NA RC"]
[PlyCount "73"]
[EventDate "2024.11.18"]
[EventType "swiss"]
[EventCountry "ITA"]
[SourceTitle "playchess.com"]
[Source "ChessBase"]
[SourceQuality "1"]
[TimeControl "5400+30"]

1. e4 {[%emt 0:00:01]} d5 {[%emt 0:00:13]} 2. exd5 {[%emt 0:00:07]} Qxd5 {[%emt 0:00:32]} 3. Nc3 {[%emt 0:00:07]} Qa5 {[%emt 0:00:48]} 4. Bc4 {[%emt 0:00:06]} e6 {[%emt 0:01:18]} 5. Nf3 {[%emt 0:00:41]} Nf6 {[%emt 1:30:09]} 6. d3 {[%emt 0:02:48]} Nc6 {[%emt 0:00:00]} 7. Bd2 {[%emt 0:04:56]} Qb6 {[%emt 0:00:00]} 8. Na4 {[%emt 0:00:54]} Qc5 {[%emt 0:00:00]} 9. Nxc5 {[%emt 0:00:12]} Bxc5 {[%emt 0:00:00]} 10. O-O {[%emt 0:00:11]} O-O {[%emt 0:00:00]} 11. c3 {[%emt 0:00:36]} Na5 {[%emt 0:00:00]} 12. Bb5 {[%emt 0:01:06]} c6 {[%emt 0:00:00]} 13. Ba4 {[%emt 0:00:05]} b5 {[%emt 0:00:00]} 14. Bc2 {[%emt 0:00:08]} Bb7 {[%emt 0:00:00]} 15. b4 {[%emt 0:00:07]} Bb6 {[%emt 0:00:00]} 16. bxa5 {[%emt 0:00:10]} Bxa5 {[%emt 0:00:00]} 17. d4 {[%emt 0:00:36]} Rfd8 {[%emt 0:00:00]} 18. Re1 {[%emt 0:01:16]} Nd5 {[%emt 0:00:00]} 19. h3 {[%emt 0:00:53]} Nxc3 {[%emt 0:00:00]} 20. Bxh7+ {[%emt 0:01:40]} Kxh7 {[%emt 0:00:00]} 21. Qc2+ {[%emt 0:00:57]} Kg8 {[%emt 0:00:00]} 22. Bxc3 {[%emt 0:00:08]} Bxc3 {[%emt 0:00:00]} 23. Qxc3 {[%emt 0:00:06]} a5 {[%emt 0:00:00]} 24. Ne5 {[%emt 0:02:11]} b4 {[%emt 0:00:00]} 25. Qf3 {[%emt 0:00:13]} f6 {[%emt 0:00:00]} 26. Nxc6 {[%emt 0:01:04]} Rxd4 {[%emt 0:00:00]} 27. Ne7+ {[%emt 0:00:12]} Kf8 {[%emt 0:00:00]} 28. Qxb7 {[%emt 0:00:38]} Rad8 {[%emt 0:00:00]} 29. Ng6+ {[%emt 0:00:18]} Kg8 {[%emt 0:00:00]} 30. Rxe6 {[%emt 0:00:33]} Rd1+ {[%emt 0:00:00]} 31. Rxd1 {[%emt 0:00:02]} Rxd1+ {[%emt 0:00:00]} 32. Kh2 {[%emt 0:00:01]} Rd2 {[%emt 0:00:00]} 33. Re7 {[%emt 0:00:39]} Kh7 {[%emt 0:00:00]} 34. Rxg7+ {[%emt 0:00:12]} Kh6 {[%emt 0:00:00]} 35. h4 {[%emt 0:01:09]} Rxf2 {[%emt 0:15:00]} 36. Qf7 {[%emt 0:00:30]} Kh5 {[%emt 0:00:00]} 37. Kh3 {[%emt 0:00:14]} 1-0